bitfinex/quotes_BTCUSD_20220207
["timestamp","ask_amount","ask_price","bid_price","bid_amount"]
[1644255670903,0.23170037,43949.0,43948.0,0.470496]
[1644255671563,0.23170037,43949.0,43948.0,0.584275]
[1644255671564,0.23131187,43949.0,43948.0,0.584275]
[1644255672566,0.23131187,43949.0,43948.0,0.470496]
[1644255675003,0.23131187,43949.0,43948.0,0.634276]
[1644255675204,0.23131187,43949.0,43948.0,1.03967907]
[1644255675205,0.04221978,43949.0,43948.0,1.03967907]
[1644255675401,0.04221978,43949.0,43948.0,0.757036]
[1644255675600,0.04221978,43949.0,43948.0,0.93897825]
[1644255675803,0.0001,43950.0,43949.0,0.8]
[1644255676003,0.0001,43950.0,43949.0,1.170496]
[1644255676301,0.0001,43950.0,43949.0,1.45243825]
[1644255679149,0.0001,43950.0,43949.0,1.50932625]
[1644255679549,0.0001,43950.0,43949.0,1.45243825]
[1644255680254,0.0001,43950.0,43949.0,1.50932725]
[1644255681951,0.2301,43950.0,43949.0,1.50932725]
[1644255683105,0.2301,43950.0,43949.0,0.70932725]
[1644255683306,0.2301,43950.0,43949.0,0.60663825]
[1644255683604,0.2301,43950.0,43949.0,0.424696]
[1644255684005,0.2301,43950.0,43949.0,0.474696]
[1644255685105,0.2801,43950.0,43949.0,0.474696]
[1644255685309,0.2801,43950.0,43949.0,0.424696]
[1644255687753,0.2801,43950.0,43949.0,0.324696]
[1644255690802,0.2801,43950.0,43949.0,0.424696]
[1644255691808,0.2801,43950.0,43949.0,0.324696]
[1644255692608,0.2801,43950.0,43947.0,0.68194225]
[1644255692806,0.2801,43950.0,43947.0,0.5]
[1644255693007,0.2801,43950.0,43948.0,0.324696]
[1644255693208,0.2801,43950.0,43947.0,0.49937299]
[1644255693407,0.2801,43950.0,43946.0,0.02187447]
[1644255693651,0.2301,43950.0,43947.0,0.324696]
[1644255693852,0.05,43948.0,43947.0,0.324696]
[1644255696858,0.3719,43961.0,43955.0,0.17821542]
[1644255697155,0.26423856,43957.0,43955.0,0.17821542]
[1644255697603,0.29823745,43956.0,43955.0,0.17821542]
[1644255698004,0.34823745,43956.0,43955.0,0.17821542]
[1644255698408,0.0835494,43946.0,43941.0,0.18194225]
[1644255698804,0.0835494,43946.0,43932.0,0.88990591]
[1644255699005,0.22404929,43945.0,43934.0,0.2250008]
[1644255699205,0.41565362,43945.0,43934.0,0.41526008]
[1644255699803,0.47257962,43945.0,43934.0,0.41526008]
[1644255700202,0.47257962,43945.0,43934.0,0.46526008]
[1644255700403,0.47257962,43945.0,43934.0,0.24025928]
[1644255700603,0.30748701,43944.0,43934.0,0.24025928]
[1644255700807,0.056919,43942.0,43934.0,0.24025928]
[1644255701061,0.056919,43942.0,43934.0,0.19025928]
[1644255701355,0.05,43944.0,43936.0,0.00072111]
[1644255701553,0.05,43946.0,43936.0,0.00072111]
[1644255701754,0.38614341,43948.0,43936.0,0.00072111]
[1644255702255,0.23608917,43943.0,43936.0,0.00072111]
[1644255702457,0.32532767,43945.0,43934.0,0.19025928]
[1644255702654,0.05,43943.0,43938.0,0.00072109]
[1644255703054,0.07105621,43945.0,43938.0,0.00072109]
[1644255703254,0.37607421,43945.0,43938.0,0.00072109]
[1644255703454,0.37357928,43945.0,43938.0,0.00072109]
[1644255703658,0.07105621,43945.0,43934.0,0.19025928]
[1644255703953,0.26982384,43944.0,43938.0,0.00072109]
[1644255704808,0.336915,43945.0,43934.0,0.19025928]
[1644255705003,0.336915,43945.0,43938.0,0.00072109]
[1644255705504,0.106915,43945.0,43938.0,0.00072109]
[1644255705703,0.056915,43945.0,43938.0,0.00072109]
[1644255705904,0.05,43944.0,43934.0,0.19025928]
[1644255706102,0.05,43944.0,43938.0,0.00053185]
[1644255706306,0.056918,43942.0,43938.0,0.00053185]
[1644255706503,0.05,43944.0,43939.0,0.324696]
[1644255706902,0.02191674,43947.0,43939.0,0.324696]
[1644255706903,0.05,43946.0,43939.0,0.324696]
[1644255707302,0.05,43946.0,43941.0,0.324696]
[1644255707504,0.04977744,43946.0,43943.0,0.25919968]
[1644255707703,0.02175546,43947.0,43943.0,0.31610368]
[1644255708102,0.02175546,43947.0,43944.0,0.324696]
[1644255708303,0.02175546,43947.0,43944.0,0.424696]
[1644255708552,0.0001,43950.0,43944.0,0.27887755]
[1644255708753,0.0001,43950.0,43943.0,0.25919968]
[1644255709354,0.0001,43950.0,43947.0,0.23927755]
[1644255709554,0.0001,43950.0,43943.0,0.25919968]
[1644255710556,0.0001,43950.0,43944.0,0.23696581]
[1644255710956,0.0001,43950.0,43941.0,0.056908]
[1644255711157,0.056911,43949.0,43940.0,0.29006849]
[1644255711958,0.056911,43949.0,43943.0,0.21766628]
[1644255713006,0.0501,43950.0,43943.0,0.21766628]
[1644255713207,0.0001,43950.0,43943.0,0.21766628]
[1644255714508,0.057008,43950.0,43943.0,0.21766628]
[1644255715506,0.247008,43950.0,43941.0,0.27131282]
[1644255715706,0.297008,43950.0,43941.0,0.01837885]
[1644255716356,0.297008,43950.0,43939.0,0.1777449]
[1644255716557,0.297008,43950.0,43940.0,0.25687197]
[1644255717255,0.24534916,43947.0,43940.0,0.25687197]
[1644255717656,0.056909,43946.0,43939.0,0.0208369]
[1644255718256,0.056909,43946.0,43938.0,0.10072077]
[1644255718957,0.1043087,43946.0,43938.0,0.00072077]
[1644255719156,0.1043087,43946.0,43937.0,0.19006022]
[1644255719357,0.1043087,43946.0,43938.0,0.00072077]
[1644255720307,0.1043087,43946.0,43937.0,0.19006022]
[1644255720508,0.1043087,43946.0,43938.0,0.05763377]
[1644255720709,0.05,43946.0,43938.0,0.05763377]
[1644255720912,0.02132973,43947.0,43939.0,0.324696]
[1644255721108,0.02132973,43947.0,43939.0,0.374696]
[1644255721507,0.02132973,43947.0,43940.0,0.27605025]
[1644255721708,0.02132973,43947.0,43941.0,0.324696]
[1644255721909,0.02132973,43947.0,43941.0,0.419696]
[1644255722308,0.2401,43950.0,43941.0,0.419696]
[1644255722509,0.2401,43950.0,43941.0,0.476604]
[1644255723559,0.2401,43950.0,43941.0,0.376604]
[1644255725061,0.2401,43950.0,43943.0,0.19825809]
[1644255725264,0.2401,43950.0,43946.0,0.324208]
[1644255725265,0.1901,43950.0,43946.0,0.324208]
[1644255725463,0.1901,43950.0,43948.0,0.324208]
[1644255725661,0.1901,43950.0,43949.0,0.33441817]
[1644255725862,0.1901,43950.0,43949.0,0.33298891]
[1644255726061,0.1901,43950.0,43949.0,0.65719691]
[1644255726262,0.1901,43950.0,43949.0,0.370008]
[1644255726864,0.002,43956.0,43949.0,0.370008]
[1644255727064,0.21598381,43953.0,43950.0,0.324208]
[1644255727318,0.26598381,43953.0,43951.0,0.0458]
[1644255728607,0.26098381,43953.0,43951.0,0.0458]
[1644255728806,0.26098381,43953.0,43951.0,0.0408]
[1644255729007,0.31788681,43953.0,43951.0,0.0408]
[1644255730409,0.101903,43953.0,43951.0,0.0408]
[1644255730612,0.00062855,43954.0,43952.0,0.32318401]
[1644255730811,0.00062855,43954.0,43953.0,0.370008]
[1644255731059,0.00062855,43954.0,43953.0,0.420008]
[1644255731258,0.02,43959.0,43957.0,0.7]
[1644255731259,0.01684879,43959.0,43957.0,0.7]
[1644255731463,0.01684879,43959.0,43958.0,0.60784535]
[1644255731863,0.01684879,43959.0,43958.0,0.70784535]
[1644255732263,0.01684879,43959.0,43958.0,0.86472635]
[1644255732664,0.01684879,43959.0,43958.0,1.43662635]
[1644255733062,0.01684879,43959.0,43958.0,1.38662635]
[1644255733263,0.01684879,43959.0,43958.0,1.27974535]
[1644255733463,0.01684879,43959.0,43958.0,1.32974535]
[1644255733663,0.01684879,43959.0,43958.0,1.43662535]
[1644255735714,0.01684879,43959.0,43958.0,1.38662535]
[1644255735921,0.01684879,43959.0,43958.0,1.17974535]
[1644255736116,0.01684879,43959.0,43958.0,1.27974535]
[1644255736615,0.01684879,43959.0,43958.0,1.32974535]
[1644255737415,0.01684879,43959.0,43958.0,1.43662535]
[1644255737816,0.00684879,43959.0,43958.0,1.43662535]
[1644255738562,0.19684879,43959.0,43958.0,1.43662535]
[1644255739163,0.19684879,43959.0,43958.0,1.38662535]
[1644255739563,0.00684879,43959.0,43958.0,1.38662535]
[1644255740563,0.00684879,43959.0,43958.0,1.33662535]
[1644255741965,0.00684879,43959.0,43958.0,1.56684485]
[1644255742163,0.00684879,43959.0,43958.0,1.61684485]
[1644255742614,0.00684879,43959.0,43958.0,1.38662535]
[1644255743013,0.00684879,43959.0,43958.0,1.32974535]
[1644255743613,0.00684879,43959.0,43958.0,1.56011052]
[1644255743815,0.00684879,43959.0,43958.0,1.32974535]
[1644255744315,0.00684879,43959.0,43958.0,1.32474535]
[1644255745116,0.00684879,43959.0,43958.0,1.27974535]
[1644255745315,0.00684879,43959.0,43958.0,0.470008]
[1644255745521,0.00684879,43959.0,43958.0,0.370008]
[1644255746361,0.00684879,43959.0,43958.0,0.324208]
[1644255747362,0.00684879,43959.0,43956.0,0.056888]
[1644255747562,0.00684879,43959.0,43957.0,0.324208]
[1644255748461,0.00684879,43959.0,43957.0,0.370008]
[1644255748661,0.00684879,43959.0,43958.0,0.05]
[1644255748862,0.00684879,43959.0,43958.0,0.374208]
[1644255749062,0.00684879,43959.0,43958.0,0.474208]
[1644255749562,0.00684879,43959.0,43958.0,0.424208]
[1644255752314,0.00684879,43959.0,43958.0,0.6957514]
[1644255752516,0.003,43960.0,43959.0,0.8]
[1644255752713,0.003,43960.0,43959.0,1.48638938]
[1644255752913,0.003,43960.0,43959.0,1.63638938]
[1644255753316,0.003,43960.0,43959.0,0.88218938]
[1644255754167,0.003,43960.0,43959.0,0.93218938]
[1644255755870,0.00274128,43960.0,43959.0,0.93218938]
[1644255756267,0.00274128,43960.0,43959.0,0.88218938]
[1644255757068,0.00053366,44047.0,43963.0,0.056878]
[1644255757319,0.34544821,43975.0,43963.0,0.056878]
[1644255757512,0.28150332,43973.0,43968.0,0.01917389]
[1644255757713,0.113761,43970.0,43968.0,0.01917389]
[1644255758213,0.163761,43970.0,43968.0,0.01917389]
[1644255761666,0.05,43970.0,43968.0,0.01917389]
[1644255762266,0.04961114,43970.0,43968.0,0.01917389]
[1644255762669,0.04961114,43970.0,43965.0,0.01805385]
[1644255762670,0.04961114,43970.0,43966.0,0.00071946]
[1644255763266,0.16337314,43970.0,43966.0,0.00071946]
[1644255763669,0.16337314,43970.0,43965.0,0.01805385]
[1644255763866,0.16399171,43970.0,43966.0,0.00071945]
[1644255764910,0.16337314,43970.0,43964.0,0.05688]
[1644255765109,0.16399171,43970.0,43966.0,0.00071945]
[1644255765709,0.16393048,43970.0,43967.0,0.20486077]
[1644255765910,0.05016848,43970.0,43966.0,0.00071945]
[1644255766109,0.04954991,43970.0,43963.0,0.4376707]
[1644255766315,0.056877,43969.0,43966.0,0.00071945]
[1644255766810,0.056877,43969.0,43966.0,0.05071945]
[1644255767212,0.056877,43969.0,43965.0,0.01834647]
[1644255767411,0.056877,43969.0,43966.0,0.056877]
[1644255767613,0.00061856,43970.0,43969.0,0.26549672]
[1644255767814,0.00061856,43970.0,43969.0,0.66129672]
[1644255768014,0.00061856,43970.0,43969.0,0.36129672]
[1644255768211,0.00061856,43970.0,43969.0,0.0458]
[1644255768414,3.539556,43976.0,43969.0,0.0458]
[1644255768967,0.05749557,43972.0,43969.0,0.0458]
[1644255769767,3.539556,43976.0,43971.0,0.05]
[1644255769964,3.539556,43976.0,43972.0,0.0458]
[1644255770164,0.056871,43974.0,43973.0,0.0458]
[1644255770365,3.539556,43976.0,43973.0,0.0458]
[1644255771164,3.539556,43976.0,43975.0,0.05]
[1644255771367,3.539556,43976.0,43975.0,0.0958]
[1644255772613,3.539556,43976.0,43975.0,0.0458]
[1644255774014,3.539556,43976.0,43973.0,0.09400468]
[1644255774217,0.00154633,43975.0,43974.0,0.0458]
[1644255774814,0.00154633,43975.0,43974.0,0.32086862]
[1644255775216,0.00154633,43975.0,43974.0,0.42086862]
[1644255775415,0.00154633,43975.0,43974.0,0.1458]
[1644255775615,0.00154633,43975.0,43974.0,0.202662]
[1644255776262,0.00154633,43975.0,43974.0,0.102662]
[1644255777762,0.00154633,43975.0,43974.0,0.152662]
[1644255777965,0.00154633,43975.0,43974.0,1.074562]
[1644255778163,0.00154633,43975.0,43974.0,0.674562]
[1644255778364,0.00154633,43975.0,43974.0,0.824562]
[1644255778563,0.00154633,43975.0,43974.0,0.874562]
[1644255778963,0.00154633,43975.0,43974.0,0.374562]
[1644255779163,0.00154633,43975.0,43974.0,0.61240103]
[1644255779366,0.00154633,43975.0,43974.0,0.66926303]
[1644255779819,0.00154633,43975.0,43974.0,0.71506303]
[1644255780013,3.439556,43976.0,43975.0,0.80309265]
[1644255780213,3.439556,43976.0,43975.0,0.04889265]
[1644255780814,3.439556,43976.0,43975.0,0.32602729]
[1644255781015,3.439556,43976.0,43975.0,0.04889265]
[1644255783562,3.439556,43976.0,43975.0,0.34260869]
[1644255783964,3.439556,43976.0,43975.0,0.44260869]
[1644255784165,3.439556,43976.0,43975.0,1.01450869]
[1644255784364,3.439556,43976.0,43975.0,0.72079265]
[1644255784767,3.43643883,43976.0,43975.0,0.72079265]
[1644255785767,3.43643883,43976.0,43975.0,0.66809109]
[1644255785966,3.43643883,43976.0,43975.0,0.71389109]
[1644255786168,3.42393883,43976.0,43975.0,0.71389109]
[1644255787071,2.90439782,43976.0,43975.0,0.71389109]
[1644255790014,2.90439782,43976.0,43975.0,0.0458]
[1644255790313,2.90439782,43976.0,43973.0,0.09400468]
[1644255790314,2.90439782,43976.0,43973.0,0.04400468]
[1644255791178,0.06523649,43975.0,43973.0,0.04400468]
[1644255791578,2.90439782,43976.0,43973.0,0.04400468]
[1644255792081,2.90255292,43976.0,43971.0,0.02134549]
[1644255792681,2.90255292,43976.0,43970.0,0.05]
[1644255792882,2.90317149,43976.0,43969.0,0.43954331]
[1644255793179,0.25381617,43971.0,43969.0,0.43954331]
[1644255793981,0.25381617,43971.0,43970.0,0.056869]
[1644255794380,0.00061857,43972.0,43970.0,0.106869]
[1644255794582,0.00061857,43972.0,43971.0,0.45]
[1644255794583,0.0001724,43972.0,43971.0,0.45]
[1644255794819,0.0001724,43972.0,43970.0,0.056869]
[1644255795016,2.90255292,43976.0,43970.0,0.106869]
[1644255795212,3.90255292,43976.0,43970.0,0.106869]
[1644255795412,3.90255292,43976.0,43970.0,0.056869]
[1644255795611,3.95255292,43976.0,43970.0,0.056869]
[1644255795812,0.26407247,43972.0,43970.0,0.056869]
[1644255796012,0.06355796,43971.0,43970.0,0.056869]
[1644255797015,0.26407247,43972.0,43970.0,0.056869]
[1644255799264,0.24907247,43972.0,43970.0,0.056869]
[1644255799863,0.24907247,43972.0,43969.0,0.42]
[1644255800065,0.24907247,43972.0,43969.0,0.476873]
[1644255800266,0.24907247,43972.0,43971.0,0.05]
[1644255800862,0.00061744,43974.0,43972.0,0.35]
[1644255801063,1.0,43976.0,43972.0,0.40686034]
[1644255801261,1.0,43976.0,43975.0,0.05]
[1644255801465,1.06633843,43976.0,43975.0,0.05]
[1644255802816,1.11633843,43976.0,43975.0,0.05]
[1644255803016,1.05,43976.0,43975.0,0.05]
[1644255804018,1.0,43976.0,43975.0,0.05]
[1644255805224,1.0,43976.0,43975.0,0.152657]
[1644255805518,1.0,43976.0,43975.0,0.526865]
[1644255805519,0.98701191,43976.0,43975.0,0.526865]
[1644255805919,0.98701191,43976.0,43975.0,0.626865]
[1644255807472,0.98701191,43976.0,43975.0,0.90290977]
[1644255807872,0.98701191,43976.0,43975.0,1.09610303]
[1644255808071,0.98701191,43976.0,43975.0,0.82007796]
[1644255808471,0.98701191,43976.0,43975.0,0.626865]
[1644255810116,0.98701191,43976.0,43975.0,0.82007796]
[1644255810714,0.98701191,43976.0,43975.0,1.14550126]
[1644255810915,0.64593591,43976.0,43975.0,1.14550126]
[1644255811317,0.77614222,43988.0,43975.0,0.926865]
[1644255811518,0.77614222,43988.0,43987.0,0.05]
[1644255811519,0.15623944,43988.0,43987.0,0.05]
[1644255811715,0.10056649,43988.0,43987.0,0.991908]
[1644255811915,0.10056649,43988.0,43987.0,1.28508266]
[1644255812113,0.10056649,43988.0,43987.0,1.091908]
[1644255812318,0.10056649,43988.0,43987.0,0.370008]
[1644255812319,0.18324458,43988.0,43987.0,0.370008]
[1644255812514,0.18324458,43988.0,43987.0,0.420008]
[1644255812515,0.10056649,43988.0,43987.0,0.420008]
[1644255812714,0.10056649,43988.0,43987.0,0.370008]
[1644255812715,0.0891988,43988.0,43987.0,0.370008]
[1644255813314,0.0891988,43988.0,43987.0,0.324208]
[1644255814263,0.1391988,43988.0,43987.0,0.324208]
[1644255814464,0.1391988,43988.0,43985.0,0.05]
[1644255814664,0.1391988,43988.0,43985.0,0.374208]
[1644255814665,0.056847,43986.0,43985.0,0.374208]
[1644255814964,0.056847,43986.0,43985.0,0.324208]
[1644255815166,0.056847,43986.0,43985.0,0.374208]
[1644255815966,0.056847,43986.0,43985.0,0.373208]
[1644255816364,0.056847,43986.0,43985.0,0.323208]
[1644255816765,0.056847,43986.0,43985.0,0.373208]
[1644255817166,0.00472684,43993.0,43987.0,0.324208]
[1644255817420,0.00472684,43993.0,43989.0,0.3239]
[1644255817619,0.056845,43992.0,43982.0,0.12251082]
[1644255817820,0.056845,43992.0,43984.0,0.056848]
[1644255818019,0.22382185,43990.0,43984.0,0.056848]
[1644255818220,0.22382185,43990.0,43982.0,0.02178981]
[1644255818422,0.113695,43991.0,43982.0,0.02178981]
[1644255818423,0.113695,43991.0,43983.0,0.3239]
[1644255818620,0.163695,43991.0,43983.0,0.3739]
[1644255818820,0.163695,43991.0,43984.0,0.3239]
[1644255819020,0.05,43991.0,43984.0,0.3239]
[1644255819220,0.05703092,43990.0,43984.0,0.44226333]
[1644255819619,0.00018292,43990.0,43984.0,0.44226333]
[1644255819821,0.00018292,43990.0,43989.0,0.3239]
[1644255820021,0.00018292,43990.0,43988.0,0.05]
[1644255820220,0.05685,43990.0,43988.0,0.05]
[1644255820423,0.00472684,43991.0,43988.0,0.05]
[1644255820820,0.00472684,43991.0,43989.0,0.3239]
[1644255821464,0.00472684,43991.0,43989.0,0.3739]
[1644255821663,0.00472684,43991.0,43989.0,0.3239]
[1644255824568,0.00472684,43991.0,43989.0,0.587579]
[1644255825020,0.00472684,43991.0,43990.0,0.05]
[1644255825218,0.00472684,43991.0,43990.0,0.3739]
[1644255825420,0.00472684,43991.0,43990.0,0.4739]
[1644255826121,0.00472684,43991.0,43989.0,0.487579]
[1644255826521,0.00472684,43991.0,43989.0,0.587579]
[1644255827121,0.00472684,43991.0,43989.0,0.77834538]
[1644255827722,0.00472684,43991.0,43989.0,0.437579]
[1644255827922,0.00472684,43991.0,43989.0,0.3239]
[1644255828772,0.00472684,43991.0,43989.0,0.3739]
[1644255828977,0.00472684,43991.0,43990.0,0.0958]
[1644255831075,0.00472684,43991.0,43990.0,0.0458]
[1644255831976,0.00472684,43991.0,43990.0,0.3697]
[1644255832421,0.00472684,43991.0,43990.0,0.5197]
[1644255832619,0.00472684,43991.0,43990.0,0.1458]
[1644255833419,0.00472684,43991.0,43990.0,0.3697]
[1644255833818,0.00472684,43991.0,43990.0,0.1958]
[1644255834020,0.00472684,43991.0,43990.0,0.5197]
[1644255834218,0.00472684,43991.0,43990.0,0.1958]
[1644255834719,0.00472684,43991.0,43990.0,0.0458]
[1644255834918,0.00472684,43991.0,43990.0,0.0958]
[1644255835118,0.00472684,43991.0,43990.0,0.4197]
[1644255835317,0.00472684,43991.0,43990.0,0.0958]
[1644255835519,0.00472684,43991.0,43990.0,0.4197]
[1644255835719,0.00472684,43991.0,43990.0,0.0458]
[1644255835918,0.00472684,43991.0,43990.0,0.3697]
[1644255836167,0.00472684,43991.0,43990.0,0.1458]
[1644255837166,0.00472684,43991.0,43990.0,0.0458]
[1644255837565,0.00472684,43991.0,43990.0,0.3697]
[1644255837766,0.00472684,43991.0,43990.0,0.4697]
[1644255837966,0.00472684,43991.0,43990.0,0.1458]
[1644255838166,0.00472684,43991.0,43990.0,0.4697]
[1644255838866,0.00472684,43991.0,43990.0,0.1458]
[1644255839066,0.00472684,43991.0,43990.0,0.0458]
[1644255841520,0.00241963,43991.0,43990.0,0.0458]
[1644255843421,0.00060619,43993.0,43991.0,0.00483925]
[1644255843666,0.00060619,43993.0,43992.0,0.430737]
[1644255843865,0.00060619,43993.0,43992.0,0.580737]
[1644255844267,0.02947781,43995.0,43992.0,0.580737]
[1644255844469,0.02947781,43995.0,43994.0,0.05]
[1644255844470,0.030084,43995.0,43994.0,0.05]
[1644255844672,0.030084,43995.0,43992.0,0.26367269]
[1644255844867,0.030084,43995.0,43992.0,0.16367269]
[1644255845468,0.02947781,43995.0,43992.0,0.16367269]
[1644255845868,0.02002413,43995.0,43992.0,0.16367269]
[1644255847074,0.62076683,43997.0,43992.0,0.106837]
[1644255847324,0.62076683,43997.0,43992.0,0.056837]
[1644255847915,0.62076683,43997.0,43991.0,0.07825374]
[1644255848116,0.67760683,43997.0,43992.0,0.3239]
[1644255848316,0.67760683,43997.0,43991.0,0.07825374]
[1644255849017,0.67760683,43997.0,43990.0,0.5]
[1644255849224,0.72760683,43997.0,43990.0,0.5]
[1644255849721,0.72760683,43997.0,43988.0,0.02009228]
[1644255851065,0.72760683,43997.0,43986.0,0.49305444]
[1644255851267,0.72760683,43997.0,43986.0,0.54305444]
[1644255851467,0.72760683,43997.0,43986.0,0.19305444]
[1644255851667,0.72760683,43997.0,43989.0,0.00072032]
[1644255852568,0.72760683,43997.0,43987.0,0.19305444]
[1644255852770,0.72760683,43997.0,43989.0,0.00072032]
[1644255852970,0.056857,43993.0,43989.0,0.00072032]
[1644255853372,0.006072,43992.0,43989.0,0.00072032]
[1644255853570,0.056857,43993.0,43989.0,0.00072032]
[1644255853770,0.056857,43993.0,43985.0,0.02033729]
[1644255853969,0.056857,43993.0,43989.0,0.00072031]
[1644255855025,0.056857,43993.0,43985.0,0.19305444]
[1644255855220,0.056857,43993.0,43982.0,0.24131805]
[1644255855221,0.113709,43993.0,43989.0,0.00072031]
[1644255856223,0.113709,43993.0,43983.0,0.19305444]
[1644255856423,0.056856,43991.0,43989.0,0.00072031]
[1644255856624,0.056857,43993.0,43989.0,0.00072031]
[1644255856827,0.05532018,43993.0,43989.0,0.00072031]
[1644255857425,0.05532018,43993.0,43986.0,0.19305444]
[1644255857628,0.05532018,43993.0,43989.0,0.00068574]
[1644255858427,0.056856,43992.0,43989.0,0.00068574]
[1644255858670,0.056854,43991.0,43985.0,0.0187954]
[1644255858970,0.056854,43991.0,43989.0,0.00068574]
[1644255859174,0.11503606,43992.0,43990.0,0.05]
[1644255859371,0.11503606,43992.0,43991.0,0.0458]
[1644255859571,0.11503606,43992.0,43991.0,0.0958]
[1644255859772,0.00132906,43992.0,43991.0,0.0958]
[1644255859973,0.00132906,43992.0,43991.0,0.3697]
[1644255860771,0.04317706,43993.0,43991.0,0.3697]
[1644255861072,0.04317706,43993.0,43992.0,0.3239]
[1644255861271,0.04317706,43993.0,43992.0,0.3697]
[1644255861771,0.04317706,43993.0,43990.0,0.3239]
[1644255861970,0.04317706,43993.0,43991.0,0.106844]
[1644255862418,0.04317706,43993.0,43992.0,0.3239]
[1644255863417,0.04317706,43993.0,43992.0,0.3229]
[1644255864018,0.00132906,43992.0,43991.0,0.056844]
[1644255864316,0.00132906,43992.0,43991.0,0.380727]
[1644255864519,0.00132906,43992.0,43991.0,0.67378144]
[1644255864819,0.00132906,43992.0,43991.0,0.80771511]
[1644255865216,0.00132906,43992.0,43991.0,0.81978605]
[1644255865420,0.00132906,43992.0,43991.0,0.89548362]
[1644255866074,0.72760283,43997.0,43992.0,0.85683672]
[1644255866275,0.72760283,43997.0,43993.0,0.56290713]
[1644255866475,0.72760283,43997.0,43995.0,0.05]
[1644255867678,0.60260283,43997.0,43996.0,0.2456005]
[1644255868084,0.60260283,43997.0,43996.0,0.7789485]
[1644255868380,0.60260283,43997.0,43996.0,0.72657213]
[1644255868577,0.60260283,43997.0,43996.0,0.533348]
[1644255869179,0.60260283,43997.0,43996.0,0.0458]
[1644255869378,0.65260283,43997.0,43993.0,0.01905135]
[1644255870017,0.2654226,43994.0,43993.0,0.01905135]
[1644255870217,0.3154226,43994.0,43993.0,0.01905135]
[1644255870418,0.05,43994.0,43993.0,0.01905135]
[1644255870621,0.70945083,43997.0,43993.0,0.06905135]
[1644255870819,0.70945083,43997.0,43993.0,0.01905135]
[1644255871018,0.70945083,43997.0,43992.0,0.21322413]
[1644255871218,0.70945083,43997.0,43992.0,0.02]
[1644255871521,0.95120851,43997.0,43992.0,0.02]
[1644255873121,0.95120851,43997.0,43993.0,0.056841]
[1644255874175,0.70945083,43997.0,43993.0,0.056841]
[1644255875779,0.70945083,43997.0,43992.0,0.02]
[1644255875977,0.70945083,43997.0,43992.0,0.126842]
[1644255876176,0.70945083,43997.0,43992.0,0.176842]
[1644255876377,0.65260283,43997.0,43992.0,0.176842]
[1644255876878,0.60260283,43997.0,43992.0,0.176842]
[1644255877078,0.08318262,43997.0,43994.0,0.33767707]
[1644255877328,0.08318262,43997.0,43995.0,0.056836]
[1644255877921,0.08318262,43997.0,43994.0,0.05683708]
[1644255878325,0.13318262,43997.0,43995.0,0.056836]
[1644255878522,0.08859149,43996.0,43995.0,0.056836]
[1644255878723,0.08859149,43996.0,43993.0,0.113667]
[1644255879224,0.13318262,43997.0,43993.0,0.213667]
[1644255879623,0.13318262,43997.0,43994.0,0.323883]
[1644255879824,0.056839,43996.0,43995.0,0.323883]
[1644255880022,0.056839,43996.0,43994.0,0.323883]
[1644255880223,0.056839,43996.0,43993.0,0.113667]
[1644255880424,0.056839,43996.0,43994.0,0.323883]
[1644255880623,0.056839,43996.0,43994.0,0.373883]
[1644255880829,0.08318262,43997.0,43996.0,0.323883]
[1644255881086,0.08318262,43997.0,43996.0,0.51698633]
[1644255881279,0.08318262,43997.0,43996.0,0.61278633]
[1644255881480,0.08318262,43997.0,43996.0,0.419683]
[1644255881679,0.08318262,43997.0,43996.0,0.64665792]
[1644255882083,0.08318262,43997.0,43996.0,0.419683]
[1644255882482,0.13318262,43997.0,43996.0,0.369683]
[1644255882680,0.13318262,43997.0,43996.0,0.0458]
[1644255883080,0.08318262,43997.0,43996.0,0.0458]
[1644255883281,0.056845,43996.0,43993.0,0.02136089]
[1644255883479,0.056845,43996.0,43994.0,0.323883]
[1644255883682,0.056845,43996.0,43993.0,0.02136089]
[1644255883683,0.24693588,43995.0,43993.0,0.02136089]
[1644255884082,0.24693588,43995.0,43993.0,0.34524389]
[1644255884083,0.05,43994.0,43993.0,0.34524389]
[1644255884481,0.056845,43996.0,43993.0,0.34524389]
[1644255884684,0.08318262,43997.0,43996.0,0.323883]
[1644255884922,0.08318262,43997.0,43996.0,0.583344]
[1644255885120,0.08318262,43997.0,43996.0,1.44656205]
[1644255885321,0.08318262,43997.0,43996.0,1.65605948]
[1644255885519,0.08318262,43997.0,43996.0,1.41474143]
[1644255886120,0.02150415,43999.0,43998.0,0.17436524]
[1644255886324,0.021,43999.0,43998.0,0.51316071]
[1644255886522,0.02150415,43999.0,43998.0,0.32016524]
[1644255886721,0.02150415,43999.0,43998.0,0.60743899]
[1644255886923,0.02150415,43999.0,43998.0,0.70743899]
[1644255887421,0.021,43999.0,43998.0,1.03132199]
[1644255887821,0.021,43999.0,43998.0,0.70743899]
[1644255888024,0.021,43999.0,43998.0,0.64404824]
[1644255888423,0.021,43999.0,43998.0,0.32016524]
[1644255888872,0.021,43999.0,43998.0,0.22436524]
[1644255890269,0.021,43999.0,43998.0,0.27436524]
[1644255890469,0.021,43999.0,43998.0,0.22436524]
[1644255890671,0.021,43999.0,43998.0,0.17436524]
[1644255893824,0.021,43999.0,43998.0,0.22436524]
[1644255894027,0.021,43999.0,43998.0,0.54824824]
[1644255894225,0.021,43999.0,43998.0,0.22436524]
[1644255894426,0.021,43999.0,43998.0,0.54824824]
[1644255894827,0.021,43999.0,43998.0,0.22436524]
[1644255895025,0.021,43999.0,43998.0,0.27436524]
[1644255895225,0.021,43999.0,43998.0,0.54824824]
[1644255895425,0.021,43999.0,43998.0,0.22436524]
[1644255895625,0.021,43999.0,43998.0,0.87242451]
[1644255895826,0.021,43999.0,43998.0,0.54824824]
[1644255896074,0.01736659,43999.0,43998.0,0.27436524]
[1644255896274,0.01736659,43999.0,43998.0,0.69824824]
[1644255896473,0.01736659,43999.0,43998.0,0.97621853]
[1644255897075,0.01736659,43999.0,43998.0,0.59824824]
[1644255897275,0.01736659,43999.0,43998.0,0.54824824]
[1644255897675,0.01736659,43999.0,43998.0,0.49824824]
[1644255898575,0.01736659,43999.0,43998.0,0.51824824]
[1644255898774,0.01736659,43999.0,43998.0,0.51324824]
[1644255899277,0.25558041,43998.0,43995.0,0.01413163]